[Event "*** Titled Tuesday 3|2 Blitz"]
[Site "Chess.com"]
[Date "2016.04.05"]
[Round "1"]
[White "rasool78"]
[Black "ChessWarrior7197"]
[Result "0-1"]
[WhiteElo "2158"]
[BlackElo "2491"]
[TimeControl "180+2"]
[EndTime "11:40:09 PDT"]
[Termination "ChessWarrior7197 won on time"]

1. e4 {[%clk 0:03:01.9]} 1... c5 {[%clk 0:03:00.8]} 2. Nc3 {[%clk 0:03:01.9]}
2... e6 {[%clk 0:03:00.6]} 3. g3 {[%clk 0:03:03.1]} 3... d5 {[%clk 0:03:00.4]}
4. Bg2 {[%clk 0:03:03.8]} 4... d4 {[%clk 0:03:01.1]} 5. Nce2 {[%clk 0:03:04.4]}
5... Nc6 {[%clk 0:03:01.5]} 6. d3 {[%clk 0:03:05.3]} 6... e5 {[%clk 0:03:02.4]}
7. h3 {[%clk 0:03:04]} 7... Bd6 {[%clk 0:03:03]} 8. Nf3 {[%clk 0:03:00.9]} 8...
Nge7 {[%clk 0:03:02]} 9. g4 {[%clk 0:02:53]} 9... Be6 {[%clk 0:02:57.4]} 10. Ng3
{[%clk 0:02:47.9]} 10... g6 {[%clk 0:02:52]} 11. c3 {[%clk 0:02:10.1]} 11... Qd7
{[%clk 0:02:50.2]} 12. cxd4 {[%clk 0:02:03.8]} 12... Nxd4 {[%clk 0:02:45.3]} 13.
Nxd4 {[%clk 0:01:58.6]} 13... cxd4 {[%clk 0:02:46]} 14. Qc2 {[%clk 0:01:40.9]}
14... Rc8 {[%clk 0:02:44.8]} 15. Qd1 {[%clk 0:01:35.8]} 15... f6 {[%clk
0:02:43.5]} 16. O-O {[%clk 0:01:31.2]} 16... O-O {[%clk 0:02:42.4]} 17. f4
{[%clk 0:01:10.8]} 17... exf4 {[%clk 0:02:41.3]} 18. Bxf4 {[%clk 0:01:10.4]}
18... Bxf4 {[%clk 0:02:41.2]} 19. Rxf4 {[%clk 0:01:11.1]} 19... Nc6 {[%clk
0:02:41.9]} 20. Qe2 {[%clk 0:00:57.6]} 20... Ne5 {[%clk 0:02:40.7]} 21. Raf1
{[%clk 0:00:50]} 21... Kg7 {[%clk 0:02:39.8]} 22. R1f2 {[%clk 0:00:32.9]} 22...
Qb5 {[%clk 0:02:37.2]} 23. Bf1 {[%clk 0:00:31.5]} 23... h6 {[%clk 0:02:26.6]}
24. Kg2 {[%clk 0:00:30.6]} 24... Bxa2 {[%clk 0:02:19.8]} 25. h4 {[%clk
0:00:31.1]} 25... Be6 {[%clk 0:02:18.6]} 26. h5 {[%clk 0:00:15.1]} 26... Qd7
{[%clk 0:02:13.6]} 27. hxg6 {[%clk 0:00:14.8]} 27... Bxg4 {[%clk 0:02:14.3]} 28.
Rxg4 {[%clk 0:00:12.7]} 28... Qxg4 {[%clk 0:02:13.4]} 29. Qd2 {[%clk 0:00:13.2]}
29... h5 {[%clk 0:02:09.9]} 30. Rf4 {[%clk 0:00:12.9]} 30... Qg5 {[%clk
0:02:06.3]} 31. Kh3 {[%clk 0:00:14.3]} 31... Nxg6 {[%clk 0:02:02.6]} 32. Nf5+
{[%clk 0:00:11.6]} 32... Kh8 {[%clk 0:02:02.9]} 33. Rf2 {[%clk 0:00:09.1]} 33...
Qxd2 {[%clk 0:02:03.4]} 34. Rxd2 {[%clk 0:00:05]} 34... Rc1 {[%clk 0:02:05]} 35.
Bg2 {[%clk 0:00:05.5]} 35... Rg8 {[%clk 0:02:05.5]} 36. Bf3 {[%clk 0:00:06]}
36... Nf4+ {[%clk 0:02:06.1]} 37. Kh2 {[%clk 0:00:06.9]} 37... Rgg1 {[%clk
0:01:59.5]} 38. e5 {[%clk 0:00:07.6]} 38... fxe5 {[%clk 0:01:59.4]} 39. Be4
{[%clk 0:00:09]} 39... b5 {[%clk 0:01:51.3]} 40. b4 {[%clk 0:00:09.8]} 40... Ne6
{[%clk 0:01:47.6]} 41. Ra2 {[%clk 0:00:09.2]} 41... Ng5 {[%clk 0:01:47.4]} 42.
Rxa7 {[%clk 0:00:08.5]} 42... Nxe4 {[%clk 0:01:46.6]} 43. dxe4 {[%clk
0:00:08.8]} 43... d3 {[%clk 0:01:43.6]} 44. Ne7 {[%clk 0:00:03.8]} 44... d2
{[%clk 0:01:41.5]} 45. Ra8+ {[%clk 0:00:04.5]} 45... Kh7 {[%clk 0:01:42.1]} 0-1

[Event "*** Titled Tuesday 3|2 Blitz"]
[Site "Chess.com"]
[Date "2016.04.05"]
[Round "1"]
[White "Tobi-Wan-Kenobi"]
[Black "Janosik"]
[Result "0-1"]
[WhiteElo "2292"]
[BlackElo "2577"]
[TimeControl "180+2"]
[EndTime "11:40:17 PDT"]
[Termination "Janosik won by resignation"]

1. d4 {[%clk 0:02:58]} 1... Nf6 {[%clk 0:02:55.6]} 2. c4 {[%clk 0:02:56.6]} 2...
e6 {[%clk 0:02:54.1]} 3. Nf3 {[%clk 0:02:56.1]} 3... d5 {[%clk 0:02:54.9]} 4.
Nc3 {[%clk 0:02:56]} 4... dxc4 {[%clk 0:02:56.4]} 5. e4 {[%clk 0:02:51.5]} 5...
Bb4 {[%clk 0:02:56.9]} 6. Bg5 {[%clk 0:02:52.4]} 6... h6 {[%clk 0:02:56.5]} 7.
Bxf6 {[%clk 0:02:47.3]} 7... Qxf6 {[%clk 0:02:58.4]} 8. Bxc4 {[%clk 0:02:43.9]}
8... c5 {[%clk 0:02:59.6]} 9. O-O {[%clk 0:02:40.7]} 9... O-O {[%clk 0:02:58.5]}
10. e5 {[%clk 0:02:30]} 10... Qd8 {[%clk 0:02:56.3]} 11. d5 {[%clk 0:02:29.8]}
11... Bxc3 {[%clk 0:02:45.4]} 12. bxc3 {[%clk 0:02:29.7]} 12... exd5 {[%clk
0:02:47.3]} 13. Bxd5 {[%clk 0:02:27.9]} 13... Nc6 {[%clk 0:02:44.6]} 14. Bxc6
{[%clk 0:02:03.1]} 14... bxc6 {[%clk 0:02:46.5]} 15. Qe2 {[%clk 0:01:47]} 15...
Qa5 {[%clk 0:02:47.1]} 16. Qe3 {[%clk 0:01:40]} 16... Rd8 {[%clk 0:02:44]} 17.
Nd2 {[%clk 0:01:37.3]} 17... Ba6 {[%clk 0:02:42.6]} 18. Rfd1 {[%clk 0:01:29.7]}
18... Rd3 {[%clk 0:02:40.8]} 19. Qe1 {[%clk 0:01:23.3]} 19... Qxc3 {[%clk
0:02:33]} 20. Nb3 {[%clk 0:01:23.1]} 20... Qxe1+ {[%clk 0:02:24.3]} 21. Rxe1
{[%clk 0:01:23]} 21... Rd5 {[%clk 0:02:26]} 22. Na5 {[%clk 0:01:03.6]} 22... Rc8
{[%clk 0:02:23]} 23. Rac1 {[%clk 0:01:04.1]} 23... Kf8 {[%clk 0:02:11.3]} 24.
Re3 {[%clk 0:01:02.1]} 24... c4 {[%clk 0:02:08.6]} 25. Ra3 {[%clk 0:00:58.2]}
25... Rxe5 {[%clk 0:02:07.8]} 26. f4 {[%clk 0:00:56.3]} 26... Re4 {[%clk
0:02:06.6]} 27. g3 {[%clk 0:00:52.1]} 27... Bb5 {[%clk 0:01:36.7]} 28. Rac3
{[%clk 0:00:49.7]} 28... Ke7 {[%clk 0:01:32.4]} 29. Nxc4 {[%clk 0:00:49.3]}
29... Bxc4 {[%clk 0:01:33.6]} 30. Rxc4 {[%clk 0:00:51.2]} 30... Rxc4 {[%clk
0:01:35.5]} 31. Rxc4 {[%clk 0:00:52.3]} 31... Kd6 {[%clk 0:01:37.4]} 32. Kf2
{[%clk 0:00:53.5]} 32... Kd5 {[%clk 0:01:37.9]} 33. Ra4 {[%clk 0:00:54.5]} 33...
Rc7 {[%clk 0:01:38.9]} 34. Ke3 {[%clk 0:00:55.7]} 34... c5 {[%clk 0:01:38.6]}
35. Kd3 {[%clk 0:00:57]} 35... h5 {[%clk 0:01:34.6]} 36. Ra6 {[%clk 0:00:57]}
36... c4+ {[%clk 0:01:33.5]} 37. Kc3 {[%clk 0:00:58.2]} 37... Ke4 {[%clk
0:01:35.4]} 38. Ra5 {[%clk 0:00:54.1]} 38... g6 {[%clk 0:01:35]} 39. Re5+ {[%clk
0:00:54.3]} 39... Kf3 {[%clk 0:01:36.1]} 40. f5 {[%clk 0:00:55.5]} 40... Kg2
{[%clk 0:00:58.8]} 41. fxg6 {[%clk 0:00:49.9]} 41... fxg6 {[%clk 0:01:00.7]} 42.
Rg5 {[%clk 0:00:50.9]} 42... Rc6 {[%clk 0:01:00.6]} 43. h4 {[%clk 0:00:49.8]}
43... Kf3 {[%clk 0:01:01.7]} 44. a4 {[%clk 0:00:47.4]} 44... Ra6 {[%clk
0:00:49.8]} 45. a5 {[%clk 0:00:46.7]} 45... Rc6 {[%clk 0:00:51]} 46. a6 {[%clk
0:00:44.4]} 46... Rxa6 {[%clk 0:00:51.6]} 47. Kxc4 {[%clk 0:00:45.9]} 47... Ra4+
{[%clk 0:00:52.2]} 48. Kb5 {[%clk 0:00:45.9]} 48... Rg4 {[%clk 0:00:54.1]} 0-1

[Event "*** Titled Tuesday 3|2 Blitz"]
[Site "Chess.com"]
[Date "2016.04.05"]
[Round "1"]
[White "petrpalachev"]
[Black "igorkovalenko"]
[Result "0-1"]
[WhiteElo "2306"]
[BlackElo "2575"]
[TimeControl "180+2"]
[EndTime "11:40:24 PDT"]
[Termination "igorkovalenko won on time"]

1. d4 {[%clk 0:02:46.7]} 1... Nf6 {[%clk 0:02:59.9]} 2. c4 {[%clk 0:02:47.7]}
2... e6 {[%clk 0:03:01]} 3. Nf3 {[%clk 0:02:49.2]} 3... b6 {[%clk 0:03:02.1]} 4.
g3 {[%clk 0:02:50.2]} 4... Ba6 {[%clk 0:03:03.1]} 5. Qa4 {[%clk 0:02:51.1]} 5...
c6 {[%clk 0:03:01.6]} 6. Nc3 {[%clk 0:02:49]} 6... Be7 {[%clk 0:03:02.2]} 7. Bg2
{[%clk 0:02:45.7]} 7... O-O {[%clk 0:03:03.5]} 8. O-O {[%clk 0:02:46.2]} 8... d5
{[%clk 0:03:04.7]} 9. Ne5 {[%clk 0:02:44.9]} 9... Qe8 {[%clk 0:02:55.9]} 10.
cxd5 {[%clk 0:02:40.3]} 10... cxd5 {[%clk 0:02:57.8]} 11. Qxe8 {[%clk
0:02:32.7]} 11... Rxe8 {[%clk 0:02:59.7]} 12. Bg5 {[%clk 0:02:28.1]} 12... Nbd7
{[%clk 0:02:44.7]} 13. Nxd7 {[%clk 0:02:17.2]} 13... Nxd7 {[%clk 0:02:46.6]} 14.
Bxe7 {[%clk 0:02:18.5]} 14... Rxe7 {[%clk 0:02:48.5]} 15. Rfc1 {[%clk 0:02:20]}
15... Rc8 {[%clk 0:02:45.5]} 16. e4 {[%clk 0:02:10.5]} 16... dxe4 {[%clk
0:02:40.6]} 17. Nxe4 {[%clk 0:02:12.4]} 17... Rxc1+ {[%clk 0:02:38.4]} 18. Rxc1
{[%clk 0:02:12.4]} 18... Nf8 {[%clk 0:02:23.2]} 19. Nd6 {[%clk 0:01:22.3]} 19...
Rd7 {[%clk 0:02:19.9]} 20. Rc6 {[%clk 0:00:41.1]} 20... h6 {[%clk 0:02:20.4]}
21. d5 {[%clk 0:00:36.4]} 21... exd5 {[%clk 0:02:07.6]} 22. Bxd5 {[%clk
0:00:36.3]} 22... Bb7 {[%clk 0:02:09]} 23. Nxb7 {[%clk 0:00:36.9]} 23... Rxd5
{[%clk 0:02:10]} 24. Rd6 {[%clk 0:00:32.7]} 24... Re5 {[%clk 0:01:56.5]} 25. Nd8
{[%clk 0:00:31.8]} 25... Re2 {[%clk 0:01:47.9]} 26. b4 {[%clk 0:00:24.6]} 26...
Rxa2 {[%clk 0:01:45.1]} 27. Nc6 {[%clk 0:00:25]} 27... Ne6 {[%clk 0:01:33.9]}
28. Rd7 {[%clk 0:00:24]} 28... a5 {[%clk 0:01:30.4]} 29. bxa5 {[%clk 0:00:24.7]}
29... bxa5 {[%clk 0:01:31.6]} 30. Ne5 {[%clk 0:00:23]} 30... Ng5 {[%clk
0:01:26.1]} 31. Kf1 {[%clk 0:00:10.1]} 31... a4 {[%clk 0:01:17.5]} 32. h4 {[%clk
0:00:11]} 32... Ne4 {[%clk 0:01:18.9]} 33. Rxf7 {[%clk 0:00:10.8]} 33... Rxf2+
{[%clk 0:01:03.6]} 34. Rxf2 {[%clk 0:00:10.6]} 34... Nxf2 {[%clk 0:01:05.5]} 35.
Nc4 {[%clk 0:00:06]} 35... Ne4 {[%clk 0:01:01.6]} 36. Kg2 {[%clk 0:00:06.9]}
36... Kf7 {[%clk 0:01:02.7]} 37. Kf3 {[%clk 0:00:08.3]} 37... Nc3 {[%clk
0:01:02.5]} 38. Kf4 {[%clk 0:00:08.3]} 38... Ke6 {[%clk 0:01:02.1]} 39. g4
{[%clk 0:00:09.1]} 39... Nb5 {[%clk 0:01:03.2]} 40. h5 {[%clk 0:00:03.3]} 40...
a3 {[%clk 0:01:03.4]} 41. Nd2 {[%clk 0:00:04.3]} 41... Nd4 {[%clk 0:01:01.7]}
0-1

[Event "*** Titled Tuesday 3|2 Blitz"]
[Site "Chess.com"]
[Date "2016.04.05"]
[Round "1"]
[White "KuzubovYuriy"]
[Black "Krutoy123"]
[Result "1/2-1/2"]
[WhiteElo "2614"]
[BlackElo "2340"]
[TimeControl "180+2"]
[EndTime "11:40:35 PDT"]
[Termination "Game drawn by repetition"]

1. d4 {[%clk 0:03:01.9]} 1... Nf6 {[%clk 0:03:00.6]} 2. c4 {[%clk 0:03:02.8]}
2... g6 {[%clk 0:02:55.8]} 3. Nc3 {[%clk 0:03:03.6]} 3... Bg7 {[%clk 0:02:56.6]}
4. e4 {[%clk 0:03:04.4]} 4... O-O {[%clk 0:02:57.6]} 5. Be2 {[%clk 0:03:06]}
5... d6 {[%clk 0:02:58]} 6. Bg5 {[%clk 0:03:07.5]} 6... h6 {[%clk 0:02:54.4]} 7.
Be3 {[%clk 0:03:07.8]} 7... e5 {[%clk 0:02:55.4]} 8. d5 {[%clk 0:03:08]} 8... a5
{[%clk 0:02:55.3]} 9. Qd2 {[%clk 0:03:09.1]} 9... Kh7 {[%clk 0:02:56.2]} 10. h4
{[%clk 0:03:08.4]} 10... Ng4 {[%clk 0:02:52.7]} 11. Bxg4 {[%clk 0:03:09]} 11...
Bxg4 {[%clk 0:02:54.6]} 12. f3 {[%clk 0:03:10.6]} 12... Bd7 {[%clk 0:02:55.4]}
13. h5 {[%clk 0:03:12.2]} 13... g5 {[%clk 0:02:56]} 14. g4 {[%clk 0:03:13]}
14... Na6 {[%clk 0:02:49.1]} 15. Nge2 {[%clk 0:03:14]} 15... Re8 {[%clk
0:02:35.1]} 16. O-O {[%clk 0:03:14.2]} 16... Qe7 {[%clk 0:02:32.8]} 17. b3
{[%clk 0:03:13.2]} 17... c6 {[%clk 0:02:10.3]} 18. Rab1 {[%clk 0:03:04.6]} 18...
c5 {[%clk 0:02:10.4]} 19. Nc1 {[%clk 0:03:03.9]} 19... Rec8 {[%clk 0:01:59.5]}
20. Nd3 {[%clk 0:03:03.2]} 20... Bf6 {[%clk 0:01:57.3]} 21. a3 {[%clk
0:03:03.8]} 21... Qf8 {[%clk 0:01:52.9]} 22. Rb2 {[%clk 0:03:05.1]} 22... Bd8
{[%clk 0:01:53.3]} 23. Rfb1 {[%clk 0:03:06.6]} 23... Qe7 {[%clk 0:01:52.1]} 24.
Kg2 {[%clk 0:03:07.8]} 24... f6 {[%clk 0:01:46.6]} 25. Qc2 {[%clk 0:03:06.8]}
25... Qe8 {[%clk 0:01:44.3]} 26. Ne2 {[%clk 0:03:01.2]} 26... Nc7 {[%clk
0:01:43.6]} 27. b4 {[%clk 0:03:00]} 27... cxb4 {[%clk 0:01:38.3]} 28. axb4
{[%clk 0:03:01.9]} 28... axb4 {[%clk 0:01:39.3]} 29. Rxb4 {[%clk 0:03:02.3]}
29... b5 {[%clk 0:01:40.5]} 30. c5 {[%clk 0:03:00.3]} 30... dxc5 {[%clk
0:01:40.9]} 31. Nxc5 {[%clk 0:02:55.8]} 31... Na6 {[%clk 0:01:40]} 32. R4b3
{[%clk 0:02:33.4]} 32... b4 {[%clk 0:01:41.2]} 33. Nc1 {[%clk 0:02:16.9]} 33...
Nxc5 {[%clk 0:01:32.8]} 34. Bxc5 {[%clk 0:02:16.8]} 34... Be7 {[%clk 0:01:33.3]}
35. Nd3 {[%clk 0:02:15.8]} 35... Bxc5 {[%clk 0:01:33]} 36. Nxc5 {[%clk
0:02:16.7]} 36... Ra5 {[%clk 0:01:32.4]} 37. Rc1 {[%clk 0:02:15.8]} 37... Qf8
{[%clk 0:01:12.9]} 38. Nxd7 {[%clk 0:02:12.6]} 38... Rxc2+ {[%clk 0:01:14.2]}
39. Rxc2 {[%clk 0:02:14.5]} 39... Qd6 {[%clk 0:01:15.3]} 40. Nxf6+ {[%clk
0:02:10.4]} 40... Qxf6 {[%clk 0:01:15.9]} 41. Rxb4 {[%clk 0:02:11.8]} 41... Ra7
{[%clk 0:01:12]} 42. Rb8 {[%clk 0:02:08.7]} 42... Rf7 {[%clk 0:01:12]} 43. Rc3
{[%clk 0:02:08.6]} 43... Qf4 {[%clk 0:01:11.5]} 44. Rb2 {[%clk 0:02:07.4]} 44...
Qf6 {[%clk 0:01:03.6]} 45. Rb8 {[%clk 0:02:05.8]} 45... Qa6 {[%clk 0:01:02.6]}
46. Rb2 {[%clk 0:02:05.7]} 46... Rb7 {[%clk 0:00:58.2]} 47. Rbc2 {[%clk
0:01:58.9]} 47... Rd7 {[%clk 0:00:44.9]} 48. Rc6 {[%clk 0:01:59.4]} 48... Qd3
{[%clk 0:00:43]} 49. Rf2 {[%clk 0:01:58.1]} 49... Rf7 {[%clk 0:00:41.1]} 50. Re6
{[%clk 0:01:58.6]} 50... Qc3 {[%clk 0:00:41.4]} 51. Rc6 {[%clk 0:01:57.9]} 51...
Qd4 {[%clk 0:00:38.7]} 52. Ra2 {[%clk 0:01:53.7]} 52... Qe3 {[%clk 0:00:37]} 53.
Rf2 {[%clk 0:01:53.2]} 53... Qf4 {[%clk 0:00:36.6]} 54. Re6 {[%clk 0:01:51.7]}
54... Rf6 {[%clk 0:00:35.4]} 55. Re7+ {[%clk 0:01:48]} 55... Rf7 {[%clk
0:00:34.7]} 56. Re6 {[%clk 0:01:49.4]} 56... Kg7 {[%clk 0:00:28.7]} 57. Rg6+
{[%clk 0:01:48.5]} 57... Kh7 {[%clk 0:00:29.4]} 58. Re6 {[%clk 0:01:49.9]} 58...
Rf6 {[%clk 0:00:30.3]} 59. Re7+ {[%clk 0:01:50.9]} 59... Rf7 {[%clk 0:00:30.4]}
60. Re6 {[%clk 0:01:52.3]} 1/2-1/2

[Event "*** Titled Tuesday 3|2 Blitz"]
[Site "Chess.com"]
[Date "2016.04.05"]
[Round "1"]
[White "VSERGUEI"]
[Black "Colombiano07"]
[Result "1-0"]
[WhiteElo "2451"]
[BlackElo "2135"]
[TimeControl "180+2"]
[EndTime "11:40:41 PDT"]
[Termination "VSERGUEI won by resignation"]

1. d4 {[%clk 0:03:01.9]} 1... d5 {[%clk 0:02:59.2]} 2. c4 {[%clk 0:03:02.3]}
2... Bf5 {[%clk 0:02:58.4]} 3. cxd5 {[%clk 0:03:02]} 3... Bxb1 {[%clk
0:02:58.5]} 4. Qa4+ {[%clk 0:03:01.3]} 4... Nd7 {[%clk 0:02:58.6]} 5. Rxb1
{[%clk 0:03:00.3]} 5... Nf6 {[%clk 0:02:59.5]} 6. Nf3 {[%clk 0:02:57.5]} 6...
Nxd5 {[%clk 0:03:00.1]} 7. e4 {[%clk 0:02:57]} 7... Nb6 {[%clk 0:03:01]} 8. Qc2
{[%clk 0:02:55.8]} 8... g6 {[%clk 0:03:02.5]} 9. Be2 {[%clk 0:02:52.9]} 9... Bg7
{[%clk 0:03:03.3]} 10. O-O {[%clk 0:02:53.7]} 10... O-O {[%clk 0:03:04.3]} 11.
Rd1 {[%clk 0:02:53.5]} 11... c6 {[%clk 0:03:03.4]} 12. b4 {[%clk 0:02:53]} 12...
Qb8 {[%clk 0:02:44.7]} 13. a4 {[%clk 0:02:49.1]} 13... a5 {[%clk 0:02:43.2]} 14.
b5 {[%clk 0:02:49.2]} 14... Rc8 {[%clk 0:02:42.3]} 15. bxc6 {[%clk 0:02:45.9]}
15... Rxc6 {[%clk 0:02:40.9]} 16. Qa2 {[%clk 0:02:40.6]} 16... e6 {[%clk
0:02:39.4]} 17. d5 {[%clk 0:02:26.1]} 17... exd5 {[%clk 0:02:39.6]} 18. exd5
{[%clk 0:02:26.6]} 18... Rc8 {[%clk 0:02:35.2]} 19. Be3 {[%clk 0:02:25.4]} 19...
Qd6 {[%clk 0:02:19.5]} 20. Qb3 {[%clk 0:01:34.7]} 20... Rc3 {[%clk 0:01:56.7]}
21. Qb5 {[%clk 0:01:35]} 21... Rxe3 {[%clk 0:01:26.6]} 22. fxe3 {[%clk
0:01:34.7]} 22... Re8 {[%clk 0:01:27.5]} 23. Qxa5 {[%clk 0:01:26.1]} 23... Rxe3
{[%clk 0:01:21.4]} 24. Bb5 {[%clk 0:01:24.6]} 24... Qc5 {[%clk 0:00:53.9]} 25.
Kh1 {[%clk 0:01:19.6]} 25... h5 {[%clk 0:00:52.2]} 26. Rbc1 {[%clk 0:01:15.7]}
26... Qa3 {[%clk 0:00:46.5]} 27. Bxd7 {[%clk 0:01:13.7]} 27... Nxd7 {[%clk
0:00:44.7]} 28. Qc7 {[%clk 0:00:40.4]} 28... Nf8 {[%clk 0:00:29.5]} 29. Ng5
{[%clk 0:00:40.1]} 29... Re7 {[%clk 0:00:21.6]} 30. d6 {[%clk 0:00:39.7]} 30...
Rd7 {[%clk 0:00:20.8]} 31. Ne4 {[%clk 0:00:31.1]} 31... Qxa4 {[%clk 0:00:20]}
32. Nc5 {[%clk 0:00:30.7]} 32... Rxc7 {[%clk 0:00:14.9]} 33. dxc7 {[%clk
0:00:30.3]} 33... Qa8 {[%clk 0:00:12.8]} 34. Nxb7 {[%clk 0:00:29.7]} 34... Qxb7
{[%clk 0:00:13.1]} 35. c8=Q {[%clk 0:00:30.8]} 35... Qxc8 {[%clk 0:00:14.6]} 36.
Rxc8 {[%clk 0:00:30.8]} 36... Bf6 {[%clk 0:00:11.2]} 37. Rf1 {[%clk 0:00:29.6]}
37... Be7 {[%clk 0:00:08]} 38. Rc7 {[%clk 0:00:29]} 38... Bd6 {[%clk 0:00:05.7]}
39. Rcxf7 {[%clk 0:00:29.7]} 39... Be5 {[%clk 0:00:07.6]} 40. Rxf8+ {[%clk
0:00:30.3]} 1-0

[Event "*** Titled Tuesday 3|2 Blitz"]
[Site "Chess.com"]
[Date "2016.04.05"]
[Round "1"]
[White "GregShahade"]
[Black "Alexander_Donchenko"]
[Result "1-0"]
[WhiteElo "2342"]
[BlackElo "2582"]
[TimeControl "180+2"]
[EndTime "11:40:51 PDT"]
[Termination "GregShahade won by resignation"]

1. e4 {[%clk 0:02:54.9]} 1... c6 {[%clk 0:03:01]} 2. d4 {[%clk 0:02:55.2]} 2...
d5 {[%clk 0:03:02.9]} 3. exd5 {[%clk 0:02:57.1]} 3... cxd5 {[%clk 0:03:04.1]} 4.
c4 {[%clk 0:02:58.6]} 4... Nf6 {[%clk 0:03:05.5]} 5. Nc3 {[%clk 0:02:59.7]} 5...
Nc6 {[%clk 0:03:06.9]} 6. Bg5 {[%clk 0:02:59.4]} 6... dxc4 {[%clk 0:03:07.7]} 7.
Bxc4 {[%clk 0:02:56.2]} 7... h6 {[%clk 0:03:08.9]} 8. Bf4 {[%clk 0:02:57.3]}
8... e6 {[%clk 0:03:09]} 9. Nf3 {[%clk 0:02:58.3]} 9... Bd6 {[%clk 0:03:09.5]}
10. Be5 {[%clk 0:02:59.4]} 10... O-O {[%clk 0:03:10.3]} 11. O-O {[%clk
0:02:59.7]} 11... b6 {[%clk 0:03:07.7]} 12. Qe2 {[%clk 0:02:58.5]} 12... Bb7
{[%clk 0:03:07.8]} 13. Rfe1 {[%clk 0:02:57.6]} 13... Be7 {[%clk 0:03:02.7]} 14.
Rad1 {[%clk 0:02:55.4]} 14... Rc8 {[%clk 0:03:02.4]} 15. Bxf6 {[%clk 0:02:23.3]}
15... Bxf6 {[%clk 0:03:00.3]} 16. d5 {[%clk 0:02:23.9]} 16... exd5 {[%clk
0:02:27.2]} 17. Bxd5 {[%clk 0:02:16.6]} 17... Qc7 {[%clk 0:01:35.8]} 18. Nb5
{[%clk 0:02:13]} 18... Qb8 {[%clk 0:01:36.4]} 19. Nd6 {[%clk 0:02:13.9]} 19...
Rcd8 {[%clk 0:01:11.2]} 20. Nxb7 {[%clk 0:01:57.8]} 20... Qxb7 {[%clk
0:01:13.1]} 21. Qe4 {[%clk 0:01:53.3]} 21... Qd7 {[%clk 0:00:55.3]} 22. Bxc6
{[%clk 0:01:40.2]} 22... Qxd1 {[%clk 0:00:56.1]} 23. Rxd1 {[%clk 0:01:41.3]}
23... Rxd1+ {[%clk 0:00:57.8]} 24. Ne1 {[%clk 0:01:42.5]} 24... Bxb2 {[%clk
0:00:55.8]} 25. Ba4 {[%clk 0:01:36.6]} 25... Ra1 {[%clk 0:00:51.2]} 26. Bc2
{[%clk 0:01:23]} 26... g6 {[%clk 0:00:46.4]} 27. Bb1 {[%clk 0:01:20.3]} 27...
Kg7 {[%clk 0:00:38.3]} 28. h4 {[%clk 0:01:17.8]} 28... Rd8 {[%clk 0:00:34.3]}
29. Qc2 {[%clk 0:01:12.9]} 29... Bf6 {[%clk 0:00:23]} 30. h5 {[%clk 0:01:11.4]}
30... Rd5 {[%clk 0:00:11.9]} 31. hxg6 {[%clk 0:01:03.7]} 31... Rc5 {[%clk
0:00:13.1]} 32. Qb3 {[%clk 0:00:58.8]} 32... fxg6 {[%clk 0:00:14.4]} 33. Nd3
{[%clk 0:00:51.1]} 33... Rc7 {[%clk 0:00:08.8]} 34. Kh2 {[%clk 0:00:50.3]} 34...
Rd7 {[%clk 0:00:07.4]} 35. g3 {[%clk 0:00:50.9]} 35... h5 {[%clk 0:00:07.5]} 36.
Nf4 {[%clk 0:00:51.6]} 36... Rd2 {[%clk 0:00:07.2]} 37. Ne6+ {[%clk 0:00:32.1]}
37... Kh8 {[%clk 0:00:05.6]} 38. Qe3 {[%clk 0:00:29.7]} 38... Rb2 {[%clk
0:00:02.9]} 39. Qh6+ {[%clk 0:00:30.3]} 39... Kg8 {[%clk 0:00:04.4]} 40. Qxg6+
{[%clk 0:00:30.5]} 1-0

[Event "*** Titled Tuesday 3|2 Blitz"]
[Site "Chess.com"]
[Date "2016.04.05"]
[Round "1"]
[White "LittlePeasant"]
[Black "chito89"]
[Result "1-0"]
[WhiteElo "2424"]
[BlackElo "2600"]
[TimeControl "180+2"]
[EndTime "11:41:04 PDT"]
[Termination "LittlePeasant won by resignation"]

1. Nf3 {[%clk 0:03:01.4]} 1... g6 {[%clk 0:02:28.5]} 2. d4 {[%clk 0:03:01.7]}
2... Bg7 {[%clk 0:02:28.2]} 3. c4 {[%clk 0:03:02.1]} 3... Nf6 {[%clk 0:02:27.7]}
4. g3 {[%clk 0:03:03.1]} 4... O-O {[%clk 0:02:28.2]} 5. Bg2 {[%clk 0:03:04.6]}
5... d6 {[%clk 0:02:28.4]} 6. O-O {[%clk 0:03:05.4]} 6... Nbd7 {[%clk
0:02:29.8]} 7. Nc3 {[%clk 0:03:01.6]} 7... e5 {[%clk 0:02:30.6]} 8. e4 {[%clk
0:02:49]} 8... exd4 {[%clk 0:02:30.9]} 9. Nxd4 {[%clk 0:02:49.9]} 9... Re8
{[%clk 0:02:32.1]} 10. b3 {[%clk 0:02:44.3]} 10... Nc5 {[%clk 0:02:12.9]} 11. f3
{[%clk 0:02:41.3]} 11... a5 {[%clk 0:02:06.9]} 12. Be3 {[%clk 0:02:37.9]} 12...
a4 {[%clk 0:02:08]} 13. b4 {[%clk 0:02:24.6]} 13... Ne6 {[%clk 0:02:09.3]} 14.
Ndb5 {[%clk 0:02:21.7]} 14... Nd7 {[%clk 0:01:56.9]} 15. Rc1 {[%clk 0:02:20]}
15... Ne5 {[%clk 0:01:51.9]} 16. Nd5 {[%clk 0:01:49.3]} 16... Bd7 {[%clk
0:01:44.5]} 17. Qe2 {[%clk 0:01:46.8]} 17... a3 {[%clk 0:01:27.4]} 18. Rfd1
{[%clk 0:01:44.6]} 18... h5 {[%clk 0:01:22.1]} 19. h3 {[%clk 0:01:37.4]} 19...
Ra6 {[%clk 0:01:22.7]} 20. f4 {[%clk 0:01:34.7]} 20... Nxc4 {[%clk 0:01:12.3]}
21. Qxc4 {[%clk 0:01:36.6]} 21... Rc6 {[%clk 0:01:13.1]} 22. Qe2 {[%clk
0:01:30.2]} 22... Rxc1 {[%clk 0:01:14.7]} 23. Rxc1 {[%clk 0:01:30.2]} 23... Bxb5
{[%clk 0:01:16.3]} 24. Qxb5 {[%clk 0:01:28.7]} 24... c6 {[%clk 0:01:17.9]} 25.
Qxb7 {[%clk 0:01:16.8]} 25... cxd5 {[%clk 0:01:19.3]} 26. Qxd5 {[%clk
0:01:18.7]} 26... h4 {[%clk 0:01:20.6]} 27. g4 {[%clk 0:01:13.8]} 27... Qb8
{[%clk 0:01:20.2]} 28. f5 {[%clk 0:01:02.8]} 28... Nf8 {[%clk 0:01:11.9]} 29.
fxg6 {[%clk 0:01:03.9]} 29... Nxg6 {[%clk 0:01:12.5]} 30. Rf1 {[%clk 0:01:05.8]}
30... Re7 {[%clk 0:01:04.1]} 31. b5 {[%clk 0:01:01.9]} 31... Ne5 {[%clk
0:01:01.3]} 32. b6 {[%clk 0:00:59.8]} 32... Rb7 {[%clk 0:00:56.7]} 33. Rb1
{[%clk 0:00:54]} 33... Bf8 {[%clk 0:00:51.6]} 34. Rb3 {[%clk 0:00:50.1]} 34...
Qc8 {[%clk 0:00:50.8]} 35. Qd2 {[%clk 0:00:40.6]} 35... Bg7 {[%clk 0:00:42]} 36.
Bf2 {[%clk 0:00:36.2]} 36... Qc4 {[%clk 0:00:37.1]} 37. Rxa3 {[%clk 0:00:33.3]}
37... Rb8 {[%clk 0:00:27.6]} 38. Rc3 {[%clk 0:00:27.5]} 38... Qb5 {[%clk
0:00:24.9]} 39. Rc1 {[%clk 0:00:26.7]} 39... Ng6 {[%clk 0:00:21.8]} 40. Bf1
{[%clk 0:00:25.3]} 40... Qa4 {[%clk 0:00:20.4]} 41. Qc2 {[%clk 0:00:23.7]} 41...
Qa8 {[%clk 0:00:19.1]} 42. Qc7 {[%clk 0:00:22.1]} 42... Ne5 {[%clk 0:00:16]} 43.
Qa7 {[%clk 0:00:19.9]} 43... Qxe4 {[%clk 0:00:09.8]} 44. Qxb8+ {[%clk
0:00:20.5]} 44... Kh7 {[%clk 0:00:11.5]} 45. Bg2 {[%clk 0:00:19.8]} 45... Qf4
{[%clk 0:00:12.9]} 46. Qc8 {[%clk 0:00:20.9]} 46... Nd3 {[%clk 0:00:12]} 47.
Qf5+ {[%clk 0:00:20.1]} 47... Qxf5 {[%clk 0:00:12.8]} 48. gxf5 {[%clk 0:00:22]}
1-0